fUST/lending_fUST_20240729
["ID","MTS","AMOUNT","RATE_DAILY","PERIOD"]
[333528029,1722233448118,-500.0,0.00014963,2]
[333528030,1722233448128,-500.0,0.00014963,2]
[333528031,1722233448137,-176.14,0.00014963,2]
[333528032,1722233448146,-500.0,0.00014963,2]
[333528033,1722233448155,-500.0,0.00014963,2]
[333528034,1722233448164,-1154.08,0.00014963,2]
[333528035,1722233448173,-3180.45,0.00014963,2]
[333528036,1722233448183,-500.0,0.00014963,2]
[333528037,1722233448192,-500.0,0.00014963,2]
[333528038,1722233448202,-500.0,0.00014963,2]
[333528039,1722233448215,-568.08929102,0.00014963,2]
[333528040,1722233448225,-496.84,0.00014963,2]
[333528041,1722233448234,-500.0,0.00014963,2]
[333528042,1722233448244,-500.0,0.00014963,2]
[333528043,1722233448255,-500.0,0.00014963,2]
[333528044,1722233448264,-500.0,0.00014963,2]
[333528045,1722233448273,-500.0,0.00014963,2]
[333528046,1722233448283,-595.84812033,0.00014963,2]
[333528047,1722233448293,-509.06811076,0.00014963,2]
[333528048,1722233448302,-519.3,0.00014963,2]
[333528049,1722233448312,-500.0,0.00014963,2]
[333528050,1722233448321,-500.0,0.00014963,2]
[333528051,1722233448331,-500.0,0.00014963,2]
[333528052,1722233448341,-500.0,0.00014963,2]
[333528053,1722233448350,-500.0,0.00014963,2]
[333528054,1722233448359,-500.0,0.00014963,2]
[333528055,1722233448369,-500.0,0.00014963,2]
[333528056,1722233448378,-500.0,0.00014963,2]
[333528057,1722233448388,-500.0,0.00014963,2]
[333528058,1722233448397,-500.0,0.00014963,2]
[333528059,1722233448407,-500.0,0.00014963,2]
[333528060,1722233448417,-500.0,0.00014963,2]
[333528061,1722233448427,-315.43561576,0.00014963,2]
[333528062,1722233448437,-500.0,0.00014963,2]
[333528063,1722233448446,-500.0,0.00014963,2]
[333528064,1722233448456,-500.0,0.00014963,2]
[333528065,1722233448465,-903.74,0.00014963,2]
[333528066,1722233448475,-500.0,0.00014963,2]
[333528067,1722233448484,-500.0,0.00014963,2]
[333528068,1722233448493,-174.048617,0.00014963,2]
[333528069,1722233448502,-500.0,0.00014963,2]
[333528070,1722233448512,-500.0,0.00014963,2]
[333528071,1722233448521,-511.7694671,0.00014963,2]
[333528072,1722233448530,-500.0,0.00014963,2]
[333528073,1722233448540,-272.91077916,0.00014963,2]
[333528074,1722233448549,-500.0,0.00014963,2]
[333528075,1722233448557,-500.0,0.00014963,2]
[333528076,1722233448567,-500.0,0.00014963,2]
[333528077,1722233448576,-500.0,0.00014963,2]
[333528078,1722233448587,-507.78893357,0.00014963,2]
[333528079,1722233448598,-456.00795406,0.00015,2]
[333528080,1722233448607,-150.112233,0.00015,2]
[333528081,1722233448616,-154.71377951,0.00015,2]
[333528082,1722233448627,-951.37397172,0.00015,2]
[333528083,1722233448637,-150.112233,0.00015,2]
[333528084,1722233448646,-39749.8082156,0.00015227,2]
[333528085,1722233448655,-500.0,0.00015237,2]
[333528086,1722233448664,-449.41791758,0.00015237,2]
[333528087,1722233448673,-509.22630441,0.00015237,2]
[333528088,1722233448682,-507.13848479,0.00015237,2]
[333528089,1722233448691,-500.0,0.00015237,2]
[333528090,1722233448700,-506.07542602,0.00015237,2]
[333528091,1722233448709,-509.37016206,0.00015237,2]
[333528092,1722233448718,-500.0,0.00015237,2]
[333528093,1722233448728,-500.0,0.00015237,2]
[333528094,1722233448738,-500.0,0.00015237,2]
[333528095,1722233448748,-500.0,0.00015237,2]
[333528096,1722233448757,-244.97,0.00015237,2]
[333528097,1722233448767,-500.0,0.00015237,2]
[333528098,1722233448777,-245.06478643,0.00015237,2]
[333528099,1722233448786,-500.0,0.00015237,2]
[333528100,1722233448795,-500.0,0.00015237,2]
[333528101,1722233448805,-405.29331131,0.00015237,2]
[333528102,1722233448815,-500.0,0.00015237,2]
[333528103,1722233448824,-500.0,0.00015237,2]
[333528104,1722233448834,-500.0,0.00015237,2]
[333528105,1722233448843,-1154.08,0.00015237,2]
[333528106,1722233448853,-3180.45,0.00015237,2]
[333528107,1722233448862,-500.0,0.00015237,2]
[333528108,1722233448871,-500.0,0.00015237,2]
[333528109,1722233448880,-500.0,0.00015237,2]
[333528110,1722233448890,-412.77,0.00015237,2]
[333528111,1722233448900,-450.37,0.00015237,2]
[333528112,1722233448909,-500.0,0.00015237,2]
[333528113,1722233448918,-500.0,0.00015237,2]
[333528114,1722233448928,-519.3,0.00015237,2]
[333528115,1722233448938,-559.16,0.00015237,2]
[333528116,1722233448948,-500.0,0.00015237,2]
[333528117,1722233448958,-500.0,0.00015237,2]
[333528118,1722233448967,-500.0,0.00015237,2]
[333528119,1722233448977,-468.24202739,0.00015237,2]
[333528120,1722233448986,-238.56,0.00015237,2]
[333528121,1722233448996,-293.52,0.00015237,2]
[333528122,1722233449006,-571.89,0.00015237,2]
[333528123,1722233449015,-500.0,0.00015237,2]
[333528124,1722233449025,-439.72242609,0.00015237,2]
[333528125,1722233449034,-500.0,0.00015237,2]
[333528126,1722233449117,-903.74,0.00015237,2]
[333528127,1722233449128,-500.0,0.00015237,2]
[333528128,1722233449137,-500.0,0.00015237,2]
[333528129,1722233449146,-500.0,0.00015237,2]
[333528130,1722233449156,-500.0,0.00015237,2]
[333528131,1722233449165,-500.0,0.00015237,2]
[333528132,1722233449173,-467.3,0.00015237,2]
[333528133,1722233449182,-500.0,0.00015237,2]
[333528134,1722233449191,-2432.31036888,0.000154,2]
[333528135,1722233449201,-2000.0,0.00015479,2]
[333528136,1722233449211,-26575.8083707,0.00015479,2]
[333528137,1722233449225,-39749.8082156,0.00015501,2]
[333528138,1722233449234,-456.48,0.00015511,2]
[333528139,1722233449245,-507.57493204,0.00015511,2]
[333528140,1722233449254,-500.0,0.00015511,2]
[333528141,1722233449265,-500.0,0.00015511,2]
[333528142,1722233449275,-308.44570138,0.00015511,2]
[333528143,1722233449285,-500.0,0.00015511,2]
[333528144,1722233449295,-568.85430094,0.00015511,2]
[333528145,1722233449306,-500.0,0.00015511,2]
[333528146,1722233449316,-500.0,0.00015511,2]
[333528147,1722233449326,-500.0,0.00015511,2]
[333528148,1722233449339,-500.0,0.00015511,2]
[333528149,1722233449349,-500.0,0.00015511,2]
[333528150,1722233449359,-1154.08,0.00015511,2]
[333528151,1722233449369,-3180.45,0.00015511,2]
[333528152,1722233449379,-500.0,0.00015511,2]
[333528153,1722233449389,-500.0,0.00015511,2]
[333528154,1722233449401,-500.0,0.00015511,2]
[333528155,1722233449410,-500.0,0.00015511,2]
[333528156,1722233449420,-519.3,0.00015511,2]
[333528157,1722233449429,-500.0,0.00015511,2]
[333528158,1722233449440,-500.0,0.00015511,2]
[333528159,1722233449450,-598.92,0.00015511,2]
[333528160,1722233449459,-903.74,0.00015511,2]
[333528161,1722233449469,-300.67,0.00015511,2]
[333528162,1722233449479,-500.0,0.00015511,2]
[333528163,1722233449489,-500.0,0.00015511,2]
[333528164,1722233449498,-500.0,0.00015511,2]
[333528165,1722233449507,-150.0,0.00015544,2]
[333528166,1722233449518,-500.0,0.00015579,2]
[333528167,1722233449529,-169.83137903,0.00015579,2]
[333528168,1722233449538,-500.0,0.00015579,2]
[333528169,1722233449548,-500.0,0.00015579,2]
[333528170,1722233449557,-500.0,0.00015589,2]
[333528171,1722233449567,-500.0,0.00015589,2]
[333528172,1722233449577,-500.0,0.00015596,2]
[333528173,1722233449588,-17996.283674,0.00015597,2]
[333528174,1722233449597,-585.33409816,0.00015608,2]
[333528175,1722233449606,-500.0,0.00015658,2]
[333528176,1722233449615,-513.57212724,0.00015667,2]
[333528177,1722233449624,-200.0,0.00015685,2]
[333528178,1722233449634,-2961.89739711,0.00015689,2]
[333528179,1722233449709,-189.728501,0.00015689,2]
[333528180,1722233495425,144.18461838,0.00013283,2]
[333528181,1722234344187,-178.834075,0.00012986,2]
[333528182,1722234344208,-1044.92044059,0.00013283,2]
[333528183,1722234437115,-946.94511181,0.00013283,2]
[333528184,1722234437136,-166.29942894,0.00013283,2]
[333528185,1722234437158,-139.78157449,0.00013283,2]
[333528186,1722234443090,-570.62290429,0.00013283,2]
[333528187,1722234443112,-15.60664433,0.00013386,2]
[333528192,1722234547361,-176.801299,0.00012986,2]
[333528193,1722234547382,-1001.24362039,0.00013285,2]
[333528194,1722234547403,-1046.98148347,0.00013386,2]
[333528195,1722234547423,-1991.8655524,0.00013386,2]
[333528196,1722234547445,-180.4054551,0.00013699,2]
[333528197,1722234547466,-1181.8604874,0.00014,2]
[333528198,1722234563341,-117.7519766,0.00014,2]
[333528199,1722234569517,327.94,0.00010959,2]
[333528200,1722234572194,-352.622806,0.00014247,2]
[333528201,1722234572356,-183.665349,0.00014247,2]
[333528240,1722234633453,-1340.06537772,0.00014589,2]
[333528247,1722234634008,116.86580159,0.00014247,2]
[333528287,1722234638819,-1874.99975081,0.00014247,2]
[333528288,1722234638830,-405.22409118,0.00014589,2]
[333528289,1722234638841,-603.79683721,0.00014688,2]
[333528290,1722234638852,-500.0,0.00014689,2]
[333528291,1722234638862,-500.0,0.00014689,2]
[333528292,1722234638872,-311.12227793,0.00014689,2]
[333528293,1722234638881,-500.0,0.00014689,2]
[333528294,1722234638891,-500.0,0.00014689,2]
[333528295,1722234638900,-500.0,0.00014689,2]
[333528296,1722234638910,-500.0,0.00014689,2]
[333528297,1722234638920,-500.0,0.00014689,2]
[333528298,1722234638929,-500.0,0.00014689,2]
[333528299,1722234638939,-644.29826713,0.00014689,2]
[333528300,1722234638948,-500.0,0.00014689,2]
[333528301,1722234638957,-500.0,0.00014689,2]
[333528302,1722234638967,-500.0,0.00014689,2]
[333528303,1722234638976,-503.41575297,0.00014689,2]
[333528304,1722234638985,-503.34041234,0.00014689,2]
[333528305,1722234638994,-506.58152275,0.00014689,2]
[333528306,1722234639006,-404.25423267,0.00014689,2]
[333528307,1722234639434,-145.70799696,0.00014689,2]
[333528308,1722234639444,-500.0,0.00014689,2]
[333528309,1722234639454,-523.48353356,0.00014689,2]
[333528311,1722234639463,-500.0,0.00014689,2]
[333528312,1722234639472,-503.27921189,0.00014689,2]
[333528313,1722234639482,-506.21356583,0.00014689,2]
[333528314,1722234639491,-500.0,0.00014689,2]
[333528315,1722234639501,-500.0,0.00014689,2]
[333528318,1722234639510,-505.22080051,0.00014689,2]
[333528321,1722234639519,-500.0,0.00014689,2]
[333528324,1722234639528,-500.0,0.00014689,2]
[333528329,1722234639538,-500.0,0.00014689,2]
[333528331,1722234639547,-500.0,0.00014689,2]
[333528339,1722234639666,-502.71358584,0.00014689,2]
[333528340,1722234639675,-500.0,0.00014689,2]
[333528341,1722234639686,-500.0,0.00014689,2]
[333528342,1722234639695,-500.0,0.00014689,2]
[333528343,1722234639705,-500.0,0.00014689,2]
[333528344,1722234639715,-500.0,0.00014689,2]
[333528345,1722234639724,-568.57275059,0.00014689,2]
[333528346,1722234639733,-500.0,0.00014689,2]
[333528347,1722234639744,-578.68,0.00014689,2]
[333528348,1722234639754,-500.0,0.00014689,2]
[333528349,1722234639763,-595.10420466,0.00014689,2]
[333528350,1722234639772,-500.0,0.00014689,2]
[333528351,1722234639782,-500.0,0.00014689,2]
[333528352,1722234639791,-519.91213025,0.00014689,2]
[333528353,1722234639800,-500.0,0.00014689,2]
[333528354,1722234639813,-500.0,0.00014689,2]
[333528355,1722234639822,-504.66876124,0.00014689,2]
[333528356,1722234639832,-500.0,0.00014689,2]
[333528357,1722234639842,-500.0,0.00014689,2]
[333528358,1722234639851,-500.0,0.00014689,2]
[333528359,1722234639861,-500.0,0.00014689,2]
[333528360,1722234639871,-500.0,0.00014689,2]
[333528361,1722234639881,-508.5789151,0.00014689,2]
[333528362,1722234639891,-516.80356762,0.00014689,2]
[333528363,1722234639901,-500.0,0.00014689,2]
[333528364,1722234639911,-500.0,0.00014689,2]
[333528365,1722234639920,-505.61267179,0.00014689,2]
[333528366,1722234639930,-503.3119361,0.00014689,2]
[333528367,1722234639939,-503.33264163,0.00014689,2]
[333528368,1722234639949,-497.83688963,0.00014689,2]
[333528369,1722234639958,-500.2828353,0.00014689,2]
[333528370,1722234639968,-509.98537346,0.00014689,2]
[333528371,1722234639978,-520.65407617,0.00014689,2]
[333528372,1722234639987,-500.0,0.00014689,2]
[333528373,1722234639997,-500.0,0.00014689,2]
[333528374,1722234640006,-255.14315066,0.00014689,2]
[333528375,1722234640016,-503.53226289,0.00014689,2]
[333528376,1722234640025,-503.66773713,0.00014689,2]
[333528377,1722234640034,-500.0,0.00014689,2]
[333528378,1722234640044,-461.62274937,0.00014689,2]
[333528415,1722234642562,-154.24187928,0.00014689,2]
[333528417,1722234642572,-319.80843196,0.00014689,2]
[333528427,1722234642627,-180.19156804,0.00014689,2]
[333528430,1722234642637,-500.0,0.00014689,2]
[333528432,1722234642646,-382.98705011,0.00014689,2]
[333528434,1722234642657,-124.26448216,0.00014689,2]
[333528437,1722234642667,-503.26773887,0.00014689,2]
[333528440,1722234642676,-464.39133593,0.00014689,2]
[333528861,1722234647447,-35.60866407,0.00014689,2]
[333528863,1722234647457,-500.0,0.00014689,2]
[333528865,1722234647466,-355.97088972,0.00014689,2]
[333528867,1722234647476,-500.0,0.00014689,2]
[333528869,1722234647485,-500.0,0.00014689,2]
[333528871,1722234647494,-164.66294891,0.00014689,2]
[333528873,1722234647503,-247.29,0.00014689,2]
[333528876,1722234647514,-348.16,0.00014689,2]
[333528878,1722234647526,-275.77,0.00014689,2]
[333528880,1722234647538,-485.51,0.00014689,2]
[333528882,1722234647549,-525.78238354,0.00014689,2]
[333528885,1722234647560,-531.43294767,0.00014689,2]
[333528887,1722234647572,-500.0,0.00014689,2]
[333528889,1722234647584,-495.08,0.00014689,2]
[333528891,1722234647599,-500.0,0.00014689,2]
[333528893,1722234647609,-500.0,0.00014689,2]
[333528895,1722234647618,-310.92,0.00014689,2]
[333528897,1722234647629,-500.0,0.00014689,2]
[333528899,1722234647639,-383.52,0.00014689,2]
[333528901,1722234647649,-564.68,0.00014689,2]
[333528903,1722234647658,-2650.38,0.00014689,2]
[333528905,1722234647668,-519.7292805,0.00014689,2]
[333528907,1722234647679,-500.0,0.00014689,2]
[333528910,1722234647689,-500.0,0.00014689,2]
[333528911,1722234647698,-309.43,0.00014689,2]
[333528914,1722234647709,-500.0,0.00014689,2]
[333528916,1722234647718,-961.73,0.00014689,2]
[333528918,1722234647727,-500.0,0.00014689,2]
[333528920,1722234647736,-500.0,0.00014689,2]
[333528922,1722234647745,-316.7,0.00014689,2]
[333528924,1722234647754,-500.0,0.00014689,2]
[333528926,1722234647764,-500.0,0.00014689,2]
[333528928,1722234647773,-500.0,0.00014689,2]
[333528930,1722234647782,-500.0,0.00014689,2]
[333528932,1722234647792,-500.0,0.00014689,2]
[333528934,1722234647801,-753.11,0.00014689,2]
[333528936,1722234647810,-500.0,0.00014689,2]
[333528938,1722234647820,-232.55269262,0.00014689,2]
[333528940,1722234647830,-546.26621441,0.00014689,2]
[333528942,1722234647839,-500.0,0.00014689,2]
[333528944,1722234647848,-500.0,0.00014689,2]
[333528946,1722234647857,-500.0,0.00014689,2]
[333528948,1722234647867,-500.0,0.00014689,2]
[333528950,1722234647875,-644.72,0.00014689,2]
[333528952,1722234647885,-500.0,0.00014689,2]
[333528954,1722234647894,-500.0,0.00014689,2]
[333528956,1722234647904,-1745.28946889,0.00014839,2]
[333528958,1722234647913,-512.50901388,0.00014963,2]
[333528960,1722234647923,-500.0,0.00014963,2]
[333528962,1722234647933,-225.25,0.00014963,2]
[333528964,1722234647943,-610.43,0.00014963,2]
[333528966,1722234647956,-500.0,0.00014963,2]
[333528968,1722234647967,-500.0,0.00014963,2]
[333528970,1722234647976,-638.86,0.00014963,2]
[333528972,1722234647985,-494.58,0.00014963,2]
[333528974,1722234647995,-265.06,0.00014963,2]
[333528976,1722234648004,-500.0,0.00014963,2]
[333528978,1722234648013,-500.0,0.00014963,2]
[333528981,1722234648024,-250.8,0.00014963,2]
[333528983,1722234648034,-500.0,0.00014963,2]
[333528985,1722234648043,-984.95186475,0.00014963,2]
[333532623,1722234688253,472.63079258,9.999e-05,2]
[333534701,1722235540148,-223.18548961,0.0001212,2]
[333534702,1722235571548,862.61209494,9.999e-05,2]
[333534703,1722235576532,185.61984426,9.999e-05,2]
[333534704,1722235580827,319.97739171,9.999e-05,2]
[333534705,1722235633121,-1632.27059013,0.00012882,2]
[333534706,1722235643106,182.59930751,9.999e-05,2]
[333534707,1722235667660,-218.21171043,0.0001212,2]
[333534708,1722235667682,-1307.70742144,0.0001212,2]
[333534709,1722235667706,-20936.5721722,0.00012882,2]
[333534710,1722235684665,-300.0,0.00012119,2]
[333534711,1722235684688,-300.0,0.00012119,2]
[333534712,1722235684710,-154.82977895,0.0001212,2]
[333534713,1722235684733,-154.88956423,0.0001212,2]
[333534714,1722235684756,-5296.60277022,0.0001212,2]
[333534715,1722235701226,-600.0,0.0001212,2]
[333534716,1722235701252,-199.06785614,0.0001212,2]
[333534717,1722235749177,-1525.91913187,0.00012882,2]
[333534718,1722235749200,-176.801299,0.00012986,2]
[333534719,1722235749221,-189.0787283,0.00013134,2]
[333534720,1722235749241,-335.58048112,0.000132,2]
[333534721,1722235749262,-169.299812,0.00013461,2]
[333534722,1722235749284,-169.299812,0.00013532,2]
[333534723,1722235749306,-169.299812,0.00013602,2]
[333534724,1722235749330,-169.299812,0.00013672,2]
[333534725,1722235749352,-169.299812,0.00013742,2]
[333534726,1722235749375,-169.299812,0.00013812,2]
[333534727,1722235749396,-169.299812,0.00013882,2]
[333534728,1722235749417,-169.299812,0.00013952,2]
[333534729,1722235749439,-169.299812,0.00014022,2]
[333534730,1722235749459,-113.52613129,0.00014093,2]
[333534731,1722235754158,-55.77368071,0.00014093,2]
[333534732,1722235754355,-169.299812,0.00014163,2]
[333534733,1722235754376,-334.991665,0.00014247,2]
[333534734,1722235754397,-183.665349,0.00014247,2]
[333534735,1722235773928,315.32547451,0.00014247,2]
[333534824,1722235834258,-2.91660649,0.00014247,2]
[333534827,1722235834269,-1047.17368135,0.00014589,2]
[333534829,1722235834280,-22.49783995,0.00014688,2]
[333535021,1722235840300,-477.50216005,0.00014688,2]
[333535023,1722235840313,-500.0,0.00014688,2]
[333535025,1722235840325,-500.0,0.00014688,2]
[333535028,1722235840336,-500.0,0.00014688,2]
[333535030,1722235840347,-701.46,0.00014688,2]
[333535032,1722235840358,-500.0,0.00014688,2]
[333535034,1722235840368,-500.0,0.00014688,2]
[333535036,1722235840379,-500.0,0.00014688,2]
[333535038,1722235840391,-500.0,0.00014688,2]
[333535040,1722235840401,-500.0,0.00014688,2]
[333535043,1722235840413,-229.83716447,0.00014688,2]
[333535045,1722235840423,-500.0,0.00014688,2]
[333535047,1722235840433,-289.8095694,0.00014688,2]
[333535049,1722235840445,-617.73710201,0.00014688,2]
[333535051,1722235840456,-201.10898261,0.00014688,2]
[333535053,1722235840466,-500.0,0.00014688,2]
[333535055,1722235840476,-510.55112784,0.00014689,2]
[333535058,1722235840486,-500.0,0.00014689,2]
[333535060,1722235840497,-521.50506509,0.00014689,2]
[333535062,1722235840507,-500.0,0.00014689,2]
[333535064,1722235840517,-505.48743688,0.00014689,2]
[333535066,1722235840527,-502.50488227,0.00014689,2]
[333535068,1722235840538,-500.0,0.00014689,2]
[333535070,1722235840549,-500.0,0.00014689,2]
[333535072,1722235840559,-501.81596992,0.00014689,2]
[333535074,1722235840569,-500.0,0.00014689,2]
[333535076,1722235840580,-500.0,0.00014689,2]
[333535079,1722235840590,-500.0,0.00014689,2]
[333535081,1722235840600,-500.0,0.00014689,2]
[333535083,1722235840611,-500.0,0.00014689,2]
[333535085,1722235840621,-500.0,0.00014689,2]
[333535087,1722235840632,-500.0,0.00014689,2]
[333535089,1722235840642,-500.0,0.00014689,2]
[333535091,1722235840652,-503.64346272,0.00014689,2]
[333535093,1722235840662,-449.72840881,0.00014689,2]
[333535096,1722235840673,-500.0,0.00014689,2]
[333535098,1722235840683,-500.16182026,0.00014689,2]
[333535100,1722235840694,-500.0,0.00014689,2]
[333535102,1722235840704,-500.0,0.00014689,2]
[333535104,1722235840715,-500.0,0.00014689,2]
[333535106,1722235840726,-305.12358314,0.00014689,2]
[333535109,1722235840738,-500.0,0.00014689,2]
[333535123,1722235840841,-500.0,0.00014689,2]
[333535126,1722235840879,-500.0,0.00014689,2]
[333535128,1722235840889,-500.0,0.00014689,2]
[333535130,1722235840899,-500.0,0.00014689,2]
[333535132,1722235840908,-500.0,0.00014689,2]
[333535133,1722235840918,-500.0,0.00014689,2]
[333535135,1722235840928,-504.37885215,0.00014689,2]
[333535137,1722235840937,-500.0,0.00014689,2]
[333535139,1722235840947,-500.0,0.00014689,2]
[333535141,1722235840956,-500.0,0.00014689,2]
[333535143,1722235840966,-305.17160424,0.00014689,2]
[333535146,1722235840979,-500.0,0.00014689,2]
[333535148,1722235840991,-500.0,0.00014689,2]
[333535150,1722235841001,-511.1433934,0.00014689,2]
[333535152,1722235841011,-500.0,0.00014689,2]
[333535154,1722235841023,-500.0,0.00014689,2]
[333535156,1722235841034,-500.0,0.00014689,2]
[333535158,1722235841046,-500.0,0.00014689,2]
[333535160,1722235841057,-621.66820482,0.00014689,2]
[333535162,1722235841066,-500.0,0.00014689,2]
[333535164,1722235841077,-287.85659771,0.00014689,2]
[333535166,1722235841087,-500.0,0.00014689,2]
[333535168,1722235841097,-500.0,0.00014689,2]
[333535170,1722235841108,-500.0,0.00014689,2]
[333535172,1722235841119,-500.0,0.00014689,2]
[333535174,1722235841128,-600.19715287,0.00014689,2]
[333535177,1722235841141,-649.99073554,0.00014689,2]
[333535179,1722235841152,-500.0,0.00014689,2]
[333535181,1722235841161,-500.0,0.00014689,2]
[333535183,1722235841171,-502.16832792,0.00014689,2]
[333535185,1722235841181,-500.0,0.00014689,2]
[333535187,1722235841190,-502.37850891,0.00014689,2]
[333535189,1722235841200,-500.0,0.00014689,2]
[333535191,1722235841210,-500.0,0.00014689,2]
[333535193,1722235841219,-500.0,0.00014689,2]
[333535195,1722235841229,-500.0,0.00014689,2]
[333535197,1722235841238,-500.0,0.00014689,2]
[333535199,1722235841249,-500.0,0.00014689,2]
[333535201,1722235841258,-500.0,0.00014689,2]
[333535203,1722235841267,-500.0,0.00014689,2]
[333535205,1722235841278,-500.0,0.00014689,2]
[333535206,1722235841287,-500.0,0.00014689,2]
[333535208,1722235841296,-500.0,0.00014689,2]
[333535210,1722235841306,-500.0,0.00014689,2]
[333535212,1722235841315,-500.0,0.00014689,2]
[333535214,1722235841325,-500.0,0.00014689,2]
[333535216,1722235841334,-2498.91,0.00014689,2]
[333535218,1722235841344,-721.73,0.00014689,2]
[333535220,1722235841354,-500.0,0.00014689,2]
[333535222,1722235841363,-500.0,0.00014689,2]
[333535224,1722235841373,-500.0,0.00014689,2]
[333535226,1722235841383,-921.66,0.00014689,2]
[333535228,1722235841394,-500.0,0.00014689,2]
[333535230,1722235841404,-500.0,0.00014689,2]
[333535233,1722235841414,-500.0,0.00014689,2]
[333535234,1722235841425,-182.95516934,0.00014689,2]
[333535236,1722235841436,-500.0,0.00014689,2]
[333535238,1722235841447,-523.7,0.00014689,2]
[333535241,1722235841458,-500.0,0.00014689,2]
[333535243,1722235841468,-500.0,0.00014689,2]
[333535244,1722235841478,-500.0,0.00014689,2]
[333535246,1722235841488,-114.71712977,0.00014689,2]
[333535249,1722235841502,-385.28287023,0.00014689,2]
[333535251,1722235841512,-504.4058355,0.00014689,2]
[333535253,1722235841522,-500.0,0.00014689,2]
[333535255,1722235841533,-540.71,0.00014689,2]
[333535257,1722235841543,-500.0,0.00014689,2]
[333535259,1722235841552,-500.0,0.00014689,2]
[333535261,1722235841562,-466.30351282,0.00014689,2]
[333535263,1722235841657,-33.69648718,0.00014689,2]
[333535264,1722235841667,-500.0,0.00014689,2]
[333535265,1722235841677,-500.0,0.00014689,2]
[333535266,1722235841686,-500.0,0.00014689,2]
[333535267,1722235841695,-500.0,0.00014689,2]
[333535268,1722235841705,-500.0,0.00014689,2]
[333535269,1722235841714,-500.0,0.00014689,2]
[333535270,1722235841723,-500.0,0.00014689,2]
[333535271,1722235841732,-500.0,0.00014689,2]
[333535272,1722235841741,-500.0,0.00014689,2]
[333535273,1722235841751,-196.85305137,0.00014691,2]
[333535274,1722235841761,-5305.863393,0.00014708,2]
[333535275,1722235841770,-455.01,0.00014736,7]
[333535276,1722235841780,-153.922434,0.00014767,2]
[333535277,1722235841789,-367.57032676,0.00014784,2]
[333535278,1722235841798,-1047.17368133,0.00014819,2]
[333535279,1722235841807,-151.0,0.00014953,2]
[333535280,1722235841817,-445.58,0.00014962,2]
[333535281,1722235841826,-500.0,0.00014962,2]
[333535283,1722235841835,-500.0,0.00014962,2]
[333535285,1722235841845,-701.46,0.00014962,2]
[333535287,1722235841854,-500.0,0.00014962,2]
[333535289,1722235841863,-540.67,0.00014962,2]
[333535291,1722235841873,-500.0,0.00014963,2]
[333535293,1722235841883,-500.0,0.00014963,2]
[333535294,1722235841892,-500.0,0.00014963,2]
[333535295,1722235841901,-187.82,0.00014963,2]
[333535296,1722235841910,-500.0,0.00014963,2]
[333535297,1722235841920,-4.19523212,0.00014963,2]
[333535413,1722235843429,-24.79838773,0.00014689,2]
[333535415,1722235843442,-475.20161227,0.00014689,2]
[333535417,1722235843452,-168.76476788,0.00014963,2]
[333535419,1722235843463,-500.0,0.00014963,2]
[333535421,1722235843473,-500.0,0.00014963,2]
[333535423,1722235843483,-509.02100621,0.00014963,2]
[333535425,1722235843492,-500.0,0.00014963,2]
[333535427,1722235843502,-500.0,0.00014963,2]